fUST/lending_fUST_20250213
["ID","MTS","AMOUNT","RATE_DAILY","PERIOD"]
[352900180,1739397038161,-500.0,0.00010958,2]
[352900181,1739397038171,-500.0,0.00010958,2]
[352900183,1739397038180,-500.0,0.00010958,2]
[352900184,1739397038190,-500.0,0.00010958,2]
[352900186,1739397038199,-500.0,0.00010958,2]
[352900187,1739397038209,-500.0,0.00010958,2]
[352900188,1739397038218,-500.0,0.00010958,2]
[352900190,1739397038228,-500.0,0.00010958,2]
[352900191,1739397038237,-500.0,0.00010958,2]
[352900193,1739397038247,-826.76,0.00010958,2]
[352900194,1739397038256,-500.0,0.00010958,2]
[352900196,1739397038265,-500.0,0.00010958,2]
[352900197,1739397038275,-500.0,0.00010958,2]
[352900199,1739397038284,-500.0,0.00010958,2]
[352900200,1739397038294,-500.0,0.00010958,2]
[352900201,1739397038303,-500.0,0.00010958,2]
[352900202,1739397038313,-500.0,0.00010958,2]
[352900203,1739397038332,-500.0,0.00010958,2]
[352900204,1739397038343,-500.0,0.00010958,2]
[352900205,1739397038353,-500.0,0.00010958,2]
[352900206,1739397038363,-500.0,0.00010958,2]
[352900207,1739397038373,-500.0,0.00010958,2]
[352900208,1739397038382,-500.0,0.00010958,2]
[352900209,1739397038392,-500.0,0.00010958,2]
[352900210,1739397038402,-500.0,0.00010958,2]
[352900211,1739397038412,-500.0,0.00010958,2]
[352900212,1739397038422,-501.02679964,0.00010958,2]
[352900213,1739397038431,-500.0,0.00010958,2]
[352900214,1739397038442,-2015.63,0.00010958,2]
[352900215,1739397038451,-500.0,0.00010958,2]
[352900216,1739397038461,-500.0,0.00010958,2]
[352900217,1739397038471,-500.0,0.00010958,2]
[352900218,1739397038481,-500.0,0.00010958,2]
[352900219,1739397038490,-500.0,0.00010958,2]
[352900220,1739397038500,-500.0,0.00010958,2]
[352900221,1739397038510,-500.0,0.00010958,2]
[352900222,1739397038520,-500.0,0.00010958,2]
[352900223,1739397038529,-500.0,0.00010958,2]
[352900224,1739397038539,-500.0,0.00010958,2]
[352900225,1739397038549,-500.0,0.00010958,2]
[352900226,1739397038559,-500.0,0.00010958,2]
[352900227,1739397038569,-500.0,0.00010958,2]
[352900228,1739397038579,-500.0,0.00010958,2]
[352900229,1739397038588,-500.0,0.00010958,2]
[352900230,1739397038598,-500.0,0.00010958,2]
[352900231,1739397038607,-500.0,0.00010958,2]
[352900232,1739397038617,-500.0,0.00010958,2]
[352900233,1739397038627,-500.0,0.00010958,2]
[352900234,1739397038637,-500.0,0.00010958,2]
[352900235,1739397038647,-500.0,0.00010958,2]
[352900236,1739397038657,-763.4,0.00010958,2]
[352900237,1739397038667,-301.51098945,0.00011095,2]
[352900238,1739397038676,-500.0,0.00011095,2]
[352900239,1739397038686,-500.0,0.00011095,2]
[352900240,1739397038696,-500.0,0.00011095,2]
[352900241,1739397038706,-620.05230853,0.00011095,2]
[352900242,1739397038718,-447.77,0.00011095,2]
[352900243,1739397038729,-500.0,0.00011095,2]
[352900244,1739397038739,-370.15,0.00011095,2]
[352900245,1739397038748,-500.0,0.00011095,2]
[352900246,1739397038758,-503.44,0.00011095,2]
[352900247,1739397038767,-500.0,0.00011095,2]
[352900248,1739397038777,-500.0,0.00011095,2]
[352900249,1739397038787,-500.0,0.00011095,2]
[352900250,1739397038797,-500.0,0.00011095,2]
[352900251,1739397038807,-500.0,0.00011095,2]
[352900252,1739397038816,-826.76,0.00011095,2]
[352900253,1739397038826,-447.2,0.00011095,2]
[352900254,1739397038836,-500.0,0.00011095,2]
[352900255,1739397038845,-500.0,0.00011095,2]
[352900256,1739397038855,-637.31,0.00011095,2]
[352900257,1739397038865,-500.0,0.00011095,2]
[352900258,1739397038875,-500.0,0.00011095,2]
[352900259,1739397038885,-500.0,0.00011095,2]
[352900260,1739397038894,-152.24,0.00011095,2]
[352900261,1739397038904,-602.63,0.00011095,2]
[352900262,1739397038914,-431.14,0.00011095,2]
[352900263,1739397038923,-2015.63,0.00011095,2]
[352900264,1739397038933,-500.0,0.00011095,2]
[352900265,1739397038943,-500.0,0.00011095,2]
[352900266,1739397038953,-500.0,0.00011095,2]
[352900267,1739397038965,-500.0,0.00011095,2]
[352900268,1739397038975,-500.0,0.00011095,2]
[352900269,1739397038984,-500.0,0.00011095,2]
[352900270,1739397038994,-500.0,0.00011095,2]
[352900271,1739397039004,-763.4,0.00011095,2]
[352900272,1739397039014,-494.80360195,0.00011232,2]
[352900273,1739397039024,-421.52,0.00011232,2]
[352900274,1739397039035,-500.0,0.00011232,2]
[352900275,1739397039045,-500.0,0.00011232,2]
[352900276,1739397039054,-356.42,0.00011232,2]
[352900277,1739397039065,-322.01,0.00011232,2]
[352900278,1739397039076,-500.0,0.00011232,2]
[352900279,1739397039090,-242.43,0.00011232,2]
[352900280,1739397039099,-500.0,0.00011232,2]
[352900281,1739397039109,-500.0,0.00011232,2]
[352900282,1739397039120,-826.76,0.00011232,2]
[352900283,1739397039130,-306.69,0.00011232,2]
[352900284,1739397039280,-500.0,0.00011232,2]
[352900285,1739397039291,-500.0,0.00011232,2]
[352900286,1739397039301,-500.0,0.00011232,2]
[352900287,1739397039311,-500.0,0.00011232,2]
[352900288,1739397039320,-2015.63,0.00011232,2]
[352900289,1739397039330,-459.78,0.00011232,2]
[352900290,1739397039339,-500.0,0.00011232,2]
[352900291,1739397039349,-548.48,0.00011232,2]
[352900292,1739397039359,-500.0,0.00011232,2]
[352900293,1739397039370,-500.0,0.00011232,2]
[352900294,1739397039380,-500.0,0.00011232,2]
[352900295,1739397039389,-549.62,0.00011232,2]
[352900296,1739397039399,-763.4,0.00011232,2]
[352900297,1739397039408,-500.0,0.00011369,2]
[352900298,1739397039418,-500.0,0.00011369,2]
[352900299,1739397039427,-500.0,0.00011369,2]
[352900300,1739397039437,-500.0,0.00011369,2]
[352900301,1739397039446,-500.0,0.00011369,2]
[352900302,1739397039456,-826.76,0.00011369,2]
[352900303,1739397039466,-500.0,0.00011369,2]
[352900304,1739397039476,-500.0,0.00011369,2]
[352900305,1739397039485,-500.0,0.00011369,2]
[352900306,1739397039495,-500.0,0.00011369,2]
[352900307,1739397039505,-2015.63,0.00011369,2]
[352900308,1739397039514,-500.0,0.00011369,2]
[352900309,1739397039524,-500.0,0.00011369,2]
[352900310,1739397039533,-224.6,0.00011369,2]
[352900311,1739397039543,-500.0,0.00011369,2]
[352900312,1739397039552,-763.4,0.00011369,2]
[352900313,1739397039562,-500.0,0.00011506,2]
[352900314,1739397039571,-500.0,0.00011506,2]
[352900315,1739397039581,-419.41,0.00011506,2]
[352900316,1739397039591,-500.0,0.00011506,2]
[352900317,1739397039600,-242.63,0.00011506,2]
[352900318,1739397039609,-826.76,0.00011506,2]
[352900319,1739397039619,-500.0,0.00011506,2]
[352900320,1739397039628,-500.0,0.00011506,2]
[352900321,1739397039637,-500.0,0.00011506,2]
[352900322,1739397039647,-500.0,0.00011506,2]
[352900323,1739397039658,-2015.63,0.00011506,2]
[352900324,1739397039667,-500.0,0.00011506,2]
[352900325,1739397039677,-500.0,0.00011506,2]
[352900326,1739397039687,-500.0,0.00011506,2]
[352900327,1739397039697,-763.4,0.00011506,2]
[352900328,1739397039706,-637.62,0.00011643,2]
[352900329,1739397039719,-237.1,0.00011643,2]
[352900331,1739397039728,-500.0,0.00011643,2]
[352900333,1739397039738,-826.76,0.00011643,2]
[352900334,1739397039747,-500.0,0.00011643,2]
[352900335,1739397039756,-500.0,0.00011643,2]
[352900336,1739397039766,-500.0,0.00011643,2]
[352900337,1739397039776,-355.3,0.00011643,2]
[352900338,1739397039786,-2015.63,0.00011643,2]
[352900339,1739397039795,-500.0,0.00011643,2]
[352900340,1739397039809,-500.0,0.00011643,2]
[352900341,1739397039819,-431.93,0.00011643,2]
[352900342,1739397039828,-763.4,0.00011643,2]
[352900343,1739397039840,-500.0,0.0001178,2]
[352900344,1739397039850,-826.76,0.0001178,2]
[352900345,1739397039859,-500.0,0.0001178,2]
[352900346,1739397039869,-500.0,0.0001178,2]
[352900347,1739397039879,-530.2,0.0001178,2]
[352900348,1739397039888,-2015.63,0.0001178,2]
[352900349,1739397039898,-500.0,0.0001178,2]
[352900350,1739397039909,-500.0,0.0001178,2]
[352900351,1739397039919,-763.4,0.0001178,2]
[352900352,1739397039929,-500.0,0.00011917,2]
[352900353,1739397039939,-826.76,0.00011917,2]
[352900354,1739397039948,-500.0,0.00011917,2]
[352900355,1739397039958,-500.0,0.00011917,2]
[352900356,1739397039968,-2015.63,0.00011917,2]
[352900357,1739397039978,-500.0,0.00011917,2]
[352900359,1739397039987,-500.0,0.00011917,2]
[352900360,1739397039996,-763.4,0.00011917,2]
[352900362,1739397040005,-500.0,0.00012054,2]
[352900364,1739397040015,-826.76,0.00012054,2]
[352900365,1739397040025,-574.15,0.00012054,2]
[352900366,1739397040035,-500.0,0.00012054,2]
[352900368,1739397040045,-2015.63,0.00012054,2]
[352900370,1739397040055,-341.11,0.00012054,2]
[352900372,1739397040064,-500.0,0.00012054,2]
[352900374,1739397040073,-763.4,0.00012054,2]
[352900376,1739397040087,-500.0,0.00012191,2]
[352900378,1739397040097,-826.76,0.00012191,2]
[352900380,1739397040106,-500.0,0.00012191,2]
[352900382,1739397040116,-2015.63,0.00012191,2]
[352900384,1739397040127,-500.0,0.00012191,2]
[352900386,1739397040136,-763.4,0.00012191,2]
[352900388,1739397040146,-500.0,0.00012328,2]
[352900390,1739397040155,-826.76,0.00012328,2]
[352900392,1739397040167,-500.0,0.00012328,2]
[352900394,1739397040176,-2015.63,0.00012328,2]
[352900396,1739397040185,-500.0,0.00012328,2]
[352900398,1739397040195,-442.58,0.00012465,2]
[352900400,1739397040204,-826.76,0.00012465,2]
[352900402,1739397040215,-500.0,0.00012465,2]
[352900404,1739397040225,-2015.63,0.00012465,2]
[352900406,1739397040234,-500.0,0.00012465,2]
[352900408,1739397040244,-826.76,0.00012602,2]
[352900410,1739397040254,-500.0,0.00012602,2]
[352900412,1739397040263,-2015.63,0.00012602,2]
[352900415,1739397040274,-500.0,0.00012602,2]
[352900416,1739397040284,-826.76,0.00012739,2]
[352900419,1739397040294,-500.0,0.00012739,2]
[352900421,1739397040303,-2015.63,0.00012739,2]
[352900423,1739397040313,-500.0,0.00012739,2]
[352900425,1739397040324,-826.76,0.00012876,2]
[352900427,1739397040334,-500.0,0.00012876,2]
[352900429,1739397040344,-2015.63,0.00012876,2]
[352900431,1739397040353,-500.0,0.00012876,2]
[352900433,1739397040363,-826.76,0.00013013,2]
[352900435,1739397040372,-500.0,0.00013013,2]
[352900437,1739397040382,-2015.63,0.00013013,2]
[352900439,1739397040391,-500.0,0.00013013,2]
[352900440,1739397040400,-826.76,0.0001315,2]
[352900443,1739397040411,-500.0,0.0001315,2]
[352900444,1739397040421,-2015.63,0.0001315,2]
[352900446,1739397040430,-500.0,0.0001315,2]
[352900448,1739397040439,-826.76,0.00013287,2]
[352900450,1739397040449,-636.72922901,0.00013287,2]
[352900452,1739397040459,-2015.63,0.00013287,2]
[352900454,1739397040470,-396.41468188,0.00013287,2]
[352900456,1739397040479,-500.0,0.00013408,2]
[352900459,1739397040489,-826.76,0.00013424,2]
[352900461,1739397040499,-2015.63,0.00013424,2]
[352900463,1739397040508,-826.76,0.00013561,2]
[352900465,1739397040517,-2015.63,0.00013561,2]
[352900467,1739397040527,-826.76,0.00013698,2]
[352900469,1739397040536,-2015.63,0.00013698,2]
[352900471,1739397040546,-2498.86,0.00013699,2]
[352900473,1739397040555,-2498.86,0.00013699,2]
[352900475,1739397040564,-2498.86,0.00013699,2]
[352900477,1739397040573,-2498.86,0.00013699,2]
[352900479,1739397040582,-2498.86,0.00013699,2]
[352900481,1739397040591,-2498.86,0.00013699,2]
[352900482,1739397040601,-2498.86,0.00013699,2]
[352900485,1739397040610,-2498.86,0.00013699,2]
[352900486,1739397040619,-2498.86,0.00013699,2]
[352900489,1739397040629,-2498.86,0.00013699,2]
[352900490,1739397040638,-2498.86,0.00013699,2]
[352900493,1739397040648,-2498.86,0.00013699,2]
[352900494,1739397040657,-2498.86,0.00013699,2]
[352900496,1739397040667,-2498.86,0.00013699,2]
[352900498,1739397040676,-2498.86,0.00013699,2]
[352900500,1739397040687,-2498.86,0.00013699,2]
[352900502,1739397040696,-2498.86,0.00013699,2]
[352900504,1739397040705,-2498.86,0.00013699,2]
[352900507,1739397040716,-2498.86,0.00013699,2]
[352900509,1739397040727,-2498.90117551,0.00013699,2]
[352900511,1739397040736,-192.704565,0.00013699,2]
[352900512,1739397040745,-826.76,0.00013835,2]
[352900515,1739397040757,-2015.63,0.00013835,2]
[352900516,1739397040766,-826.76,0.00013972,2]
[352900518,1739397040776,-2015.63,0.00013972,2]
[352900520,1739397040786,-192.153,0.00014074,2]
[352900522,1739397040795,-826.89,0.00014109,2]
[352900524,1739397040806,-2015.71000001,0.00014109,2]
[352900526,1739397040816,-166.0,0.00015068,2]
[352900528,1739397040825,-308.0,0.000158,6]
[352900530,1739397040834,-1998.24,0.000159,2]
[352900532,1739397040844,-13566.51508394,0.00015998,7]
[352900534,1739397040853,-150.0,0.00016,2]
[352900536,1739397040862,-709.1110828,0.00016082,2]
[352900538,1739397040873,-500.0,0.00016148,2]
[352900540,1739397040882,-608.46,0.00016164,2]
[352900542,1739397040891,-354.9109976,0.00016192,2]
[352900544,1739397040900,-154.447,0.0001634,2]
[352900546,1739397040909,-206.2431714,0.00016356,2]
[352900548,1739397040919,-500.0,0.00016438,2]
[352900550,1739397040929,-512.5,0.00016477,2]
[352900552,1739397040938,-5000.0,0.00016542,2]
[352900554,1739397040947,-5000.0,0.00016542,2]
[352900556,1739397040956,-5000.0,0.00016542,2]
[352900558,1739397040967,-600.0,0.00016554,2]
[352900559,1739397040976,-151.0,0.000166,2]
[352900561,1739397040985,-164.519848,0.0001666,5]
[352900564,1739397040995,-1000.0,0.000167,2]
[352900565,1739397041005,-153.0,0.00016708,2]
[352900567,1739397041015,-1000.0,0.000168,2]
[352900569,1739397041024,-500.0,0.00016853,2]
[352900571,1739397041034,-607.84663757,0.00016853,2]
[352900573,1739397041044,-11589.36666037,0.00016878,2]
[352900575,1739397041053,-299.537,0.00016926,2]
[352900577,1739397041062,-500.0,0.00016986,3]
[352900579,1739397041072,-152.0,0.00016998,2]
[352900581,1739397041086,-152.0,0.00016998,2]
[352900583,1739397041095,-152.0,0.00016998,2]
[352900585,1739397041105,-152.0,0.00016998,2]
[352900587,1739397041115,-957.63518758,0.00016998,2]
[352900589,1739397041126,-1000.0,0.00017,2]
[352900591,1739397041136,-10993.0,0.00017,5]
[352900593,1739397041146,-172.5364727,0.00017028,2]
[352900595,1739397041155,-1000.0,0.0001704,4]
[352900597,1739397041168,-2154.52708726,0.00017064,2]
[352900599,1739397041178,-2000.0,0.000171,2]
[352900601,1739397041188,-2000.0,0.000171,2]
[352900603,1739397041197,-157.31,0.000171,31]
[352900605,1739397041206,-157.31,0.000171,31]
[352900607,1739397041216,-157.31,0.000171,31]
[352900609,1739397041226,-157.31,0.000171,31]
[352900611,1739397041235,-157.31,0.000171,31]
[352900613,1739397041244,-157.31,0.000171,31]
[352900615,1739397041254,-157.31,0.000171,31]
[352900617,1739397041263,-152.0,0.00017133,2]
[352900619,1739397041272,-214.3,0.00017133,2]
[352900621,1739397041282,-151.0,0.00017142,2]
[352900622,1739397041291,-151.0,0.00017142,2]
[352900624,1739397041302,-151.0,0.00017142,2]
[352900626,1739397041313,-151.0,0.00017142,2]
[352900628,1739397041322,-151.0,0.00017142,2]
[352900630,1739397041331,-151.0,0.00017142,2]
[352900632,1739397041341,-151.0,0.00017142,2]
[352900634,1739397041350,-151.0,0.00017142,2]
[352900636,1739397041360,-151.0,0.00017142,2]
[352900638,1739397041369,-151.0,0.00017142,2]
[352900640,1739397041379,-151.0,0.00017142,2]
[352900642,1739397041388,-151.0,0.00017142,2]
[352900644,1739397041398,-243.26176,0.00017142,2]
[352900646,1739397041407,-151.0,0.00017142,2]
[352900648,1739397041417,-151.0,0.00017142,2]
[352900650,1739397041427,-151.0,0.00017142,2]
[352900652,1739397041436,-151.0,0.00017142,2]
[352900654,1739397041446,-151.0,0.00017142,2]
[352900656,1739397041456,-151.0,0.00017142,2]
[352900658,1739397041466,-151.0,0.00017142,2]
[352900660,1739397041475,-151.0,0.00017142,2]
[352900662,1739397041485,-151.0,0.00017142,2]
[352900664,1739397041494,-151.0,0.00017142,2]
[352900666,1739397041504,-151.0,0.00017142,2]
[352900668,1739397041513,-151.0,0.00017142,2]
[352900670,1739397041523,-151.0,0.00017142,2]
[352900672,1739397041533,-151.0,0.00017142,2]
[352900674,1739397041542,-151.0,0.00017142,2]
[352900676,1739397041551,-151.0,0.00017142,2]
[352900678,1739397041562,-156.766901,0.00017142,2]
[352900680,1739397041571,-151.0,0.00017142,2]
[352900682,1739397041581,-193.418912,0.00017142,2]
[352900684,1739397041591,-151.0,0.00017142,2]
[352900686,1739397041600,-151.0,0.00017142,2]
[352900688,1739397041611,-151.0,0.00017142,2]
[352900690,1739397041620,-151.0,0.00017142,2]
[352900692,1739397041630,-239.475804,0.00017142,2]
[352900694,1739397041641,-1500.0,0.00017142,7]
[352900696,1739397041650,-1096.121739,0.00017142,7]
[352900698,1739397041660,-151.0,0.00017142,2]
[352900700,1739397041671,-151.0,0.00017142,2]
[352900702,1739397041680,-151.0,0.00017142,2]
[352900704,1739397041690,-151.0,0.00017142,2]
[352900706,1739397041699,-151.0,0.00017142,2]
[352900708,1739397041709,-151.0,0.00017142,2]
[352900710,1739397041719,-151.0,0.00017142,2]
[352900712,1739397041729,-155.642172,0.00017142,2]
[352900714,1739397041738,-289.293899,0.00017142,2]
[352900715,1739397041749,-289.293899,0.00017142,2]
[352900716,1739397041759,-289.293899,0.00017142,2]
[352900717,1739397041768,-289.293899,0.00017142,2]
[352900718,1739397041778,-289.293899,0.00017142,2]
[352900719,1739397041787,-289.293899,0.00017142,2]
[352900720,1739397041796,-289.293899,0.00017142,2]
[352900721,1739397041805,-289.293899,0.00017142,2]
[352900722,1739397041814,-289.293899,0.00017142,2]
[352900723,1739397041823,-289.293899,0.00017142,2]
[352900724,1739397041832,-289.293899,0.00017142,2]
[352900725,1739397041841,-289.293899,0.00017142,2]
[352900726,1739397041851,-289.293899,0.00017142,2]
[352900727,1739397041860,-289.293899,0.00017142,2]
[352900728,1739397041869,-289.293899,0.00017142,2]
[352900729,1739397041879,-289.293899,0.00017142,2]
[352900730,1739397041888,-289.293899,0.00017142,2]
[352900732,1739397041898,-289.293899,0.00017142,2]
[352900734,1739397041907,-289.293899,0.00017142,2]
[352900736,1739397041917,-289.29389,0.00017142,2]
[352900749,1739397042026,-1231.561486,0.00017142,2]
[352900751,1739397042036,-1231.561486,0.00017142,2]
[352900753,1739397042046,-1231.561486,0.00017142,2]
[352900755,1739397042055,-1231.561486,0.00017142,2]
[352900757,1739397042065,-1231.561486,0.00017142,2]
[352900759,1739397042075,-1231.561486,0.00017142,2]
[352900761,1739397042087,-1231.561486,0.00017142,2]
[352900763,1739397042096,-1231.561486,0.00017142,2]
[352900765,1739397042106,-242.156523,0.00017142,2]
[352900767,1739397042115,-1231.561486,0.00017142,2]
[352900769,1739397042126,-242.156523,0.00017142,2]
[352900771,1739397042135,-1231.561486,0.00017142,2]
[352900773,1739397042144,-242.156523,0.00017142,2]
[352900775,1739397042154,-1231.561486,0.00017142,2]
[352900777,1739397042163,-242.156523,0.00017142,2]
[352900779,1739397042173,-1231.561486,0.00017142,2]
[352900781,1739397042182,-242.156519,0.00017142,2]
[352900783,1739397042191,-1231.561486,0.00017142,2]
[352900785,1739397042201,-1231.561486,0.00017142,2]
[352900787,1739397042210,-1231.561486,0.00017142,2]
[352900789,1739397042221,-1231.561486,0.00017142,2]
[352900791,1739397042230,-1231.561486,0.00017142,2]
[352900793,1739397042240,-1231.561486,0.00017142,2]
[352900795,1739397042251,-1231.561486,0.00017142,2]
[352900797,1739397042260,-1231.561492,0.00017142,2]
[352900799,1739397042271,-151.0,0.00017142,2]
[352900801,1739397042280,-151.0,0.00017142,2]
[352900803,1739397042289,-151.0,0.00017142,2]
[352900805,1739397042298,-151.0,0.00017142,2]
[352900807,1739397042307,-151.0,0.00017142,2]
[352900809,1739397042317,-151.0,0.00017142,2]
[352900810,1739397042326,-162.0,0.00017144,2]
[352900812,1739397042335,-162.0,0.00017144,2]
[352900814,1739397042344,-162.0,0.00017144,2]
[352900816,1739397042354,-162.0,0.00017144,2]
[352900818,1739397042363,-162.0,0.00017144,2]
[352900820,1739397042372,-162.0,0.00017144,2]
[352900822,1739397042381,-162.0,0.00017144,2]
[352900824,1739397042390,-162.0,0.00017144,2]
[352900826,1739397042399,-162.0,0.00017144,2]
[352900828,1739397042409,-162.0,0.00017144,2]
[352900830,1739397042418,-162.0,0.00017144,2]
[352900832,1739397042427,-173.87,0.00017144,2]
[352900834,1739397042437,-152.0,0.00017144,2]
[352900836,1739397042446,-152.0,0.00017144,2]
[352900838,1739397042455,-152.0,0.00017144,2]
[352900840,1739397042464,-152.0,0.00017144,2]
[352900842,1739397042473,-152.0,0.00017144,2]
[352900845,1739397042493,-152.0,0.00017144,2]
[352900847,1739397042504,-152.0,0.00017144,2]
[352900849,1739397042514,-152.0,0.00017144,2]
[352900851,1739397042524,-152.0,0.00017144,2]
[352900853,1739397042534,-152.0,0.00017144,2]
[352900855,1739397042545,-152.0,0.00017144,2]
[352900857,1739397042554,-152.0,0.00017144,2]
[352900859,1739397042564,-152.0,0.00017144,2]
[352900861,1739397042574,-152.0,0.00017144,2]
[352900863,1739397042584,-152.0,0.00017144,2]
[352900865,1739397042593,-152.0,0.00017144,2]
[352900867,1739397042603,-152.0,0.00017144,2]
[352900869,1739397042612,-152.0,0.00017144,2]
[352900871,1739397042622,-258.19,0.00017144,2]
[352900873,1739397042632,-151.0,0.00017144,2]
[352900875,1739397042643,-151.0,0.00017144,2]
[352900877,1739397042653,-151.0,0.00017144,2]
[352900881,1739397042663,-151.0,0.00017144,2]
[352900884,1739397042672,-151.0,0.00017144,2]
[352900887,1739397042682,-151.0,0.00017144,2]
[352900890,1739397042692,-151.0,0.00017144,2]
[352900892,1739397042702,-151.0,0.00017144,2]
[352900894,1739397042713,-151.0,0.00017144,2]
[352900896,1739397042723,-151.0,0.00017144,2]
[352900898,1739397042733,-151.0,0.00017144,2]
[352900900,1739397042743,-151.0,0.00017144,2]
[352900902,1739397042752,-293.885658,0.00017144,2]
[352900904,1739397042762,-151.0,0.00017144,2]
[352900906,1739397042772,-151.0,0.00017144,2]
[352900908,1739397042782,-151.0,0.00017144,2]
[352900910,1739397042792,-151.0,0.00017144,2]
[352900912,1739397042802,-151.0,0.00017144,2]
[352900914,1739397042812,-151.0,0.00017144,2]
[352900916,1739397042821,-151.0,0.00017144,2]
[352900918,1739397042831,-224.954777,0.00017144,2]
[352900920,1739397042841,-151.0,0.00017144,2]
[352900923,1739397042851,-151.0,0.00017144,2]
[352900925,1739397042861,-151.0,0.00017144,2]
[352900927,1739397042870,-151.0,0.00017144,2]
[352900929,1739397042880,-151.0,0.00017144,2]
[352900931,1739397042889,-151.0,0.00017144,2]
[352900933,1739397042899,-285.239364,0.00017144,2]
[352900934,1739397042908,-151.0,0.00017144,2]
[352900936,1739397042917,-151.0,0.00017144,2]
[352900938,1739397042927,-151.0,0.00017144,2]
[352900940,1739397042937,-151.0,0.00017144,2]
[352900942,1739397042946,-151.0,0.00017144,2]
[352900944,1739397042955,-151.0,0.00017144,2]
[352900946,1739397042964,-151.0,0.00017144,2]
[352900948,1739397042974,-151.0,0.00017144,2]
[352900950,1739397042984,-151.0,0.00017144,2]
[352900952,1739397042994,-151.0,0.00017144,2]
[352900954,1739397043003,-151.0,0.00017144,2]
[352900956,1739397043012,-151.0,0.00017144,2]
[352900958,1739397043022,-151.0,0.00017144,2]
[352900960,1739397043031,-151.0,0.00017144,2]
[352900962,1739397043041,-151.0,0.00017144,2]
[352900964,1739397043050,-218.747806,0.00017144,2]
[352900966,1739397043059,-669.235265,0.00017144,2]
[352900968,1739397043068,-669.235265,0.00017144,2]
[352900970,1739397043078,-669.235265,0.00017144,2]
[352900972,1739397043093,-669.235265,0.00017144,2]
[352900974,1739397043102,-669.235265,0.00017144,2]
[352900976,1739397043112,-669.235265,0.00017144,2]
[352900978,1739397043122,-669.235265,0.00017144,2]
[352900980,1739397043132,-669.235265,0.00017144,2]
[352900981,1739397043141,-669.235265,0.00017144,2]
[352900983,1739397043151,-669.235265,0.00017144,2]
[352900984,1739397043161,-669.235265,0.00017144,2]
[352900986,1739397043171,-669.235265,0.00017144,2]
[352900988,1739397043180,-669.235265,0.00017144,2]
[352900990,1739397043190,-669.235265,0.00017144,2]
[352900992,1739397043199,-669.235265,0.00017144,2]
[352900994,1739397043209,-669.235265,0.00017144,2]
[352900996,1739397043218,-669.235265,0.00017144,2]
[352900998,1739397043228,-669.235265,0.00017144,2]
[352901000,1739397043237,-669.235265,0.00017144,2]
[352901002,1739397043246,-669.235267,0.00017144,2]
[352901004,1739397043256,-151.0,0.00017144,2]
[352901005,1739397043265,-151.0,0.00017144,2]
[352901007,1739397043274,-158.466381,0.00017144,2]
[352901009,1739397043284,-151.0,0.00017144,2]